Workbook

Sheet Feed Cost
A2: . . . . . . . . . . . . . . . . . . . . . . . . . . . . . . . . . . . . . . . . . . . . . . . . . . . . . .
A3: FeedPlan - Feed Ingredient Cost Calculator | J3: Printed: | K3: =TODAY() -> 2024-10-02
B5: Price/Unit (as fed) | C5: Weight (as fed) | D5: % Moisture | F5: % TDN (DM Basis) | G5: % CP (DM Basis) | I5: *** Enter changes from feed test results and feed price to items in BLUE only, then press a sort button below. ***
A6: Feed Ingredient
A7: alfalfa/grass hay | B7: 115 | C7: 2000 | D7: 12.6 | F7: 57.6 | G7: 13.1
A8: alfalfa hay | B8: 155 | C8: 2000 | D8: 12.1 | F8: 63 | G8: 19.2
A9: native grass hay | B9: 90 | C9: 2000 | D9: 11.1 | F9: 55.5 | G9: 9.9 | I9: The protein (CP) and total digestible nutrient (TDN) energy that an average beef cow needs:
A10: oat greenfeed | B10: 115 | C10: 2000 | D10: 15 | F10: 59.6 | G10: 9.9
A11: corn silage | B11: 40 | C11: 2000 | D11: 71.2 | F11: 66.4 | G11: 9.3
A12: corn gluten pellets | B12: 350 | C12: 2000 | D12: 10 | F12: 83 | G12: 20 | I12: · Mid pregnancy: 7% CP and 55% TDN
A13: barley straw | B13: 70 | C13: 2000 | D13: 10.9 | F13: 46 | G13: 5 | I13: · Late pregnancy: 9% CP and 60% TDN
A14: wheat straw | B14: 70 | C14: 2000 | D14: 10.9 | F14: 44 | G14: 3.1 | I14: · After calving: 11 to 12% CP and 65% TDN
A15: barley grain | B15: 4.25 | C15: 48 | D15: 11.5 | F15: 83.1 | G15: 12.5
A16: corn grain | B16: 5.4 | C16: 56 | D16: 11 | F16: 88.2 | G16: 10
A17: feed wheat grain | B17: 6.25 | C17: 60 | D17: 11.8 | F17: 88.9 | G17: 15.6
A18: oat grain | B18: 4.05 | C18: 34 | D18: 9.8 | F18: 76.2 | G18: 11.3
A19: 12% pellets | B19: 250 | C19: 2205 | D19: 10 | F19: 72 | G19: 12
A20: feed peas | B20: 9 | C20: 60 | D20: 11.8 | F20: 87.2 | G20: 23.9
A21: corn DDG | B21: 250 | C21: 2205 | D21: 10 | F21: 88 | G21: 28
A22: 34% canola meal | B22: 320 | C22: 2205 | D22: 8 | F22: 70 | G22: 34
A23: 47% soybean meal | B23: 415 | C23: 2205 | D23: 10 | F23: 78 | G23: 47
A24: beet pulp | B24: 40 | C24: 2205 | D24: 80 | F24: 72 | G24: 8
A25: 22% lick tub | B25: 170 | C25: 200 | D25: 5 | F25: 80 | G25: 23.1
A26: 25.6% molasses | B26: 500 | C26: 2205 | D26: 50 | F26: 65.8 | G26: 51.3
A27: wheat straw NH3 | B27: 100 | C27: 2000 | D27: 12 | F27: 41.5 | G27: 8
A28: grass hay NH3 | B28: 120 | C28: 2000 | D28: 15 | F28: 62.3 | G28: 18.5
A30: Sorted by Feed Energy (TDN) Cost | E30: Sorted by Crude Protein (CP) Cost | I30: Sorted by Dry Matter (DM) Cost
B31: Price/Unit (as fed) | C31: TDN Cost ($/lb) | F31: Price/Unit (as fed) | G31: CP Cost ($/lb) | J31: Price/Unit (as fed) | K31: DM Cost ($/lb)
A32: Feed Ingredient | E32: Feed Ingredient | I32: Feed Ingredient
A33: =Data!$A$4 -> barley straw | B33: =Data!$B$4 -> 70 | C33: =Data!$G$4 -> 0.08539501293 | E33: =Data!$A$30 -> grass hay NH3 | F33: =Data!$B$30 -> 120 | G33: =Data!$H$30 -> 0.3815580286 | I33: =Data!$A$56 -> barley straw | J33: =Data!$B$56 -> 70 | K33: =Data!$J$56 -> 0.03928170595
A34: =Data!$A$5 -> wheat straw | B34: =Data!$B$5 -> 70 | C34: =Data!$G$5 -> 0.08927660443 | E34: =Data!$A$31 -> 47% soybean meal | F34: =Data!$B$31 -> 415 | G34: =Data!$H$31 -> 0.4449376283 | I34: =Data!$A$57 -> wheat straw | J34: =Data!$B$57 -> 70 | K34: =Data!$J$57 -> 0.03928170595
A35: =Data!$A$6 -> native grass hay | B35: =Data!$B$6 -> 90 | C35: =Data!$G$6 -> 0.09120481561 | E35: =Data!$A$32 -> corn DDG | F35: =Data!$B$32 -> 250 | G35: =Data!$H$32 -> 0.4499154159 | I35: =Data!$A$58 -> native grass hay | J35: =Data!$B$58 -> 90 | K35: =Data!$J$58 -> 0.05061867267
A36: =Data!$A$7 -> corn silage | B36: =Data!$B$7 -> 40 | C36: =Data!$G$7 -> 0.1045850067 | E36: =Data!$A$33 -> alfalfa hay | F36: =Data!$B$33 -> 155 | G36: =Data!$H$33 -> 0.4592102768 | I36: =Data!$A$59 -> wheat straw NH3 | J36: =Data!$B$59 -> 100 | K36: =Data!$J$59 -> 0.05681818182
A37: =Data!$A$8 -> grass hay NH3 | B37: =Data!$B$8 -> 120 | C37: =Data!$G$8 -> 0.1133037485 | E37: =Data!$A$34 -> 34% canola meal | F37: =Data!$B$34 -> 320 | G37: =Data!$H$34 -> 0.4639536974 | I37: =Data!$A$60 -> alfalfa/grass hay | J37: =Data!$B$60 -> 115 | K37: =Data!$J$60 -> 0.06578947368
A38: =Data!$A$9 -> oat greenfeed | B38: =Data!$B$9 -> 115 | C38: =Data!$G$9 -> 0.1135017765 | E38: =Data!$A$35 -> alfalfa/grass hay | F38: =Data!$B$35 -> 115 | G38: =Data!$H$35 -> 0.5022097228 | I38: =Data!$A$61 -> oat greenfeed | J38: =Data!$B$61 -> 115 | K38: =Data!$J$61 -> 0.06764705882
A39: =Data!$A$10 -> alfalfa/grass hay | B39: =Data!$B$10 -> 115 | C39: =Data!$G$10 -> 0.1142178363 | E39: =Data!$A$36 -> native grass hay | F39: =Data!$B$36 -> 90 | G39: =Data!$H$36 -> 0.5112997239 | I39: =Data!$A$62 -> corn silage | J39: =Data!$B$62 -> 40 | K39: =Data!$J$62 -> 0.06944444444
A40: =Data!$A$11 -> barley grain | B40: =Data!$B$11 -> 4.25 | C40: =Data!$G$11 -> 0.1203935993 | E40: =Data!$A$37 -> oat greenfeed | F40: =Data!$B$37 -> 115 | G40: =Data!$H$37 -> 0.6833036245 | I40: =Data!$A$63 -> grass hay NH3 | J40: =Data!$B$63 -> 120 | K40: =Data!$J$63 -> 0.07058823529
A41: =Data!$A$12 -> corn grain | B41: =Data!$B$12 -> 5.4 | C41: =Data!$G$12 -> 0.1228420742 | E41: =Data!$A$38 -> wheat straw NH3 | F41: =Data!$B$38 -> 100 | G41: =Data!$H$38 -> 0.7102272727 | I41: =Data!$A$64 -> alfalfa hay | J41: =Data!$B$64 -> 155 | K41: =Data!$J$64 -> 0.08816837315
A42: =Data!$A$13 -> beet pulp | B42: =Data!$B$13 -> 40 | C42: =Data!$G$13 -> 0.1259763165 | E42: =Data!$A$39 -> feed peas | F42: =Data!$B$39 -> 9 | G42: =Data!$H$39 -> 0.7115817038 | I42: =Data!$A$65 -> beet pulp | J42: =Data!$B$65 -> 40 | K42: =Data!$J$65 -> 0.09070294785
A43: =Data!$A$14 -> feed wheat grain | B43: =Data!$B$14 -> 6.25 | C43: =Data!$G$14 -> 0.1328490401 | E43: =Data!$A$40 -> corn silage | F43: =Data!$B$40 -> 40 | G43: =Data!$H$40 -> 0.7467144564 | I43: =Data!$A$66 -> barley grain | J43: =Data!$B$66 -> 4.25 | K43: =Data!$J$66 -> 0.100047081
A44: =Data!$A$15 -> wheat straw NH3 | B44: =Data!$B$15 -> 100 | C44: =Data!$G$15 -> 0.1369112815 | E44: =Data!$A$41 -> feed wheat grain | F44: =Data!$B$41 -> 6.25 | G44: =Data!$H$41 -> 0.7570692095 | I44: =Data!$A$67 -> corn grain | J44: =Data!$B$67 -> 5.4 | K44: =Data!$J$67 -> 0.1083467095
A45: =Data!$A$16 -> alfalfa hay | B45: =Data!$B$16 -> 155 | C45: =Data!$G$16 -> 0.1399497987 | E45: =Data!$A$42 -> barley straw | F45: =Data!$B$42 -> 70 | G45: =Data!$H$42 -> 0.785634119 | I45: =Data!$A$68 -> feed wheat grain | J45: =Data!$B$68 -> 6.25 | K45: =Data!$J$68 -> 0.1181027967
A46: =Data!$A$17 -> corn DDG | B46: =Data!$B$17 -> 250 | C46: =Data!$G$17 -> 0.1431549051 | E46: =Data!$A$43 -> barley grain | F46: =Data!$B$43 -> 4.25 | G46: =Data!$H$43 -> 0.8003766478 | I46: =Data!$A$69 -> 12% pellets | J46: =Data!$B$69 -> 250 | K46: =Data!$J$69 -> 0.1259763165
A47: =Data!$A$18 -> oat grain | B47: =Data!$B$18 -> 4.05 | C47: =Data!$G$18 -> 0.1733063985 | E47: =Data!$A$44 -> 25.6% molasses | F47: =Data!$B$44 -> 500 | G47: =Data!$H$44 -> 0.884044326 | I47: =Data!$A$70 -> corn DDG | J47: =Data!$B$70 -> 250 | K47: =Data!$J$70 -> 0.1259763165
A48: =Data!$A$19 -> 12% pellets | B48: =Data!$B$19 -> 250 | C48: =Data!$G$19 -> 0.1749671062 | E48: =Data!$A$45 -> corn gluten pellets | F48: =Data!$B$45 -> 350 | G48: =Data!$H$45 -> 0.9722222222 | I48: =Data!$A$71 -> oat grain | J48: =Data!$B$71 -> 4.05 | K48: =Data!$J$71 -> 0.1320594757
A49: =Data!$A$20 -> feed peas | B49: =Data!$B$20 -> 9 | C49: =Data!$G$20 -> 0.1950321413 | E49: =Data!$A$46 -> 12% pellets | F49: =Data!$B$46 -> 250 | G49: =Data!$H$46 -> 1.049802637 | I49: =Data!$A$72 -> 34% canola meal | J49: =Data!$B$72 -> 320 | K49: =Data!$J$72 -> 0.1577442571
A50: =Data!$A$21 -> 34% canola meal | B50: =Data!$B$21 -> 320 | C50: =Data!$G$21 -> 0.2253489387 | E50: =Data!$A$47 -> corn grain | F50: =Data!$B$47 -> 5.4 | G50: =Data!$H$47 -> 1.083467095 | I50: =Data!$A$73 -> feed peas | J50: =Data!$B$73 -> 9 | K50: =Data!$J$73 -> 0.1700680272
A51: =Data!$A$22 -> corn gluten pellets | B51: =Data!$B$22 -> 350 | C51: =Data!$G$22 -> 0.234270415 | E51: =Data!$A$48 -> beet pulp | F51: =Data!$B$48 -> 40 | G51: =Data!$H$48 -> 1.133786848 | I51: =Data!$A$74 -> corn gluten pellets | J51: =Data!$B$74 -> 350 | K51: =Data!$J$74 -> 0.1944444444
A52: =Data!$A$23 -> 47% soybean meal | B52: =Data!$B$23 -> 415 | C52: =Data!$G$23 -> 0.2681034427 | E52: =Data!$A$49 -> oat grain | F52: =Data!$B$49 -> 4.05 | G52: =Data!$H$49 -> 1.168667926 | I52: =Data!$A$75 -> 47% soybean meal | J52: =Data!$B$75 -> 415 | K52: =Data!$J$75 -> 0.2091206853
A53: =Data!$A$24 -> 25.6% molasses | B53: =Data!$B$24 -> 500 | C53: =Data!$G$24 -> 0.6892321265 | E53: =Data!$A$50 -> wheat straw | F53: =Data!$B$50 -> 70 | G53: =Data!$H$50 -> 1.267151805 | I53: =Data!$A$76 -> 25.6% molasses | J53: =Data!$B$76 -> 500 | K53: =Data!$J$76 -> 0.4535147392
A54: =Data!$A$25 -> 22% lick tub | B54: =Data!$B$25 -> 170 | C54: =Data!$G$25 -> 1.118421053 | E54: =Data!$A$51 -> 22% lick tub | F54: =Data!$B$51 -> 170 | G54: =Data!$H$51 -> 3.873319663 | I54: =Data!$A$77 -> 22% lick tub | J54: =Data!$B$77 -> 170 | K54: =Data!$J$77 -> 0.8947368421
A125: Note: This budget is only a guide and is not intended as an in-depth study of livestock feed values. Interpretation and use of this information is the responsibility of the user. If you need help with a budget, contact a Farm Management Specialist.
K127: September, 2024

Sheet Data
A1: TDN Sort - lowest cost column K, highest cost column L
B2: Price/Unit | C2: Weight | D2: % | E2: % TDN | F2: % CP | G2: TDN Cost | H2: CP Cost | I2: Weight | J2: cents/lb
A3: Commodity | B3: (As Fed) | C3: (As Fed) | D3: Moisture | E3: (DM Basis) | F3: (DM Basis) | G3: $/lb | H3: cents/lb | I3: (Dry Matter) | J3: (Dry Matter)
A4: ='Feed Cost'!A13 -> barley straw | B4: ='Feed Cost'!B13 -> 70 | C4: ='Feed Cost'!C13 -> 2000 | D4: ='Feed Cost'!D13 -> 10.9 | E4: ='Feed Cost'!F13 -> 46 | F4: ='Feed Cost'!G13 -> 5 | G4: =(B4)/(I4*(E4/100)) -> 0.08539501293 | H4: =(B4*100)/(I4*(F4/100)) -> 78.5634119 | I4: =C4*(100-D4)/100 -> 1782 | J4: =B4*100/I4 -> 3.928170595 | K4: =RANK(G4,$G$4:$G$25,1) -> 1 | L4: =RANK(G4,$G$4:$G$25,0) -> 22
A5: ='Feed Cost'!A14 -> wheat straw | B5: ='Feed Cost'!B14 -> 70 | C5: ='Feed Cost'!C14 -> 2000 | D5: ='Feed Cost'!D14 -> 10.9 | E5: ='Feed Cost'!F14 -> 44 | F5: ='Feed Cost'!G14 -> 3.1 | G5: =(B5)/(I5*(E5/100)) -> 0.08927660443 | H5: 126.7151805 | I5: 1782 | J5: 3.928170595 | K5: 2 | L5: 21
A6: ='Feed Cost'!A9 -> native grass hay | B6: ='Feed Cost'!B9 -> 90 | C6: ='Feed Cost'!C9 -> 2000 | D6: ='Feed Cost'!D9 -> 11.1 | E6: ='Feed Cost'!F9 -> 55.5 | F6: ='Feed Cost'!G9 -> 9.9 | G6: =(B6)/(I6*(E6/100)) -> 0.09120481561 | H6: 51.12997239 | I6: 1778 | J6: 5.061867267 | K6: 3 | L6: 20
A7: ='Feed Cost'!A11 -> corn silage | B7: ='Feed Cost'!B11 -> 40 | C7: ='Feed Cost'!C11 -> 2000 | D7: ='Feed Cost'!D11 -> 71.2 | E7: ='Feed Cost'!F11 -> 66.4 | F7: ='Feed Cost'!G11 -> 9.3 | G7: =(B7)/(I7*(E7/100)) -> 0.1045850067 | H7: 74.67144564 | I7: 576 | J7: 6.944444444 | K7: 4 | L7: 19
A8: =IF('Feed Cost'!A28="(enter new feed)","",'Feed Cost'!A28) -> grass hay NH3 | B8: =IF('Feed Cost'!B28=0,"",'Feed Cost'!B28) -> 120 | C8: ='Feed Cost'!C28 -> 2000 | D8: ='Feed Cost'!D28 -> 15 | E8: ='Feed Cost'!F28 -> 62.3 | F8: ='Feed Cost'!G28 -> 18.5 | G8: =IF(B8="","",(B8)/(I8*(E8/100))) -> 0.1133037485 | H8: 38.15580286 | I8: 1700 | J8: 7.058823529 | K8: 5 | L8: 18
A9: ='Feed Cost'!A10 -> oat greenfeed | B9: ='Feed Cost'!B10 -> 115 | C9: ='Feed Cost'!C10 -> 2000 | D9: ='Feed Cost'!D10 -> 15 | E9: ='Feed Cost'!F10 -> 59.6 | F9: ='Feed Cost'!G10 -> 9.9 | G9: =(B9)/(I9*(E9/100)) -> 0.1135017765 | H9: 68.33036245 | I9: 1700 | J9: 6.764705882 | K9: 6 | L9: 17
A10: ='Feed Cost'!A7 -> alfalfa/grass hay | B10: ='Feed Cost'!B7 -> 115 | C10: ='Feed Cost'!C7 -> 2000 | D10: ='Feed Cost'!D7 -> 12.6 | E10: ='Feed Cost'!F7 -> 57.6 | F10: ='Feed Cost'!G7 -> 13.1 | G10: 0.1142178363 | H10: 50.22097228 | I10: 1748 | J10: 6.578947368 | K10: 7 | L10: 16
A11: ='Feed Cost'!A15 -> barley grain | B11: ='Feed Cost'!B15 -> 4.25 | C11: ='Feed Cost'!C15 -> 48 | D11: ='Feed Cost'!D15 -> 11.5 | E11: ='Feed Cost'!F15 -> 83.1 | F11: ='Feed Cost'!G15 -> 12.5 | G11: 0.1203935993 | H11: 80.03766478 | I11: 42.48 | J11: 10.0047081 | K11: 8 | L11: 15
A12: ='Feed Cost'!A16 -> corn grain | B12: ='Feed Cost'!B16 -> 5.4 | C12: ='Feed Cost'!C16 -> 56 | D12: ='Feed Cost'!D16 -> 11 | E12: ='Feed Cost'!F16 -> 88.2 | F12: ='Feed Cost'!G16 -> 10 | G12: 0.1228420742 | H12: 108.3467095 | I12: 49.84 | J12: 10.83467095 | K12: 9 | L12: 14
A13: ='Feed Cost'!A24 -> beet pulp | B13: ='Feed Cost'!B24 -> 40 | C13: ='Feed Cost'!C24 -> 2205 | D13: ='Feed Cost'!D24 -> 80 | E13: ='Feed Cost'!F24 -> 72 | F13: ='Feed Cost'!G24 -> 8 | G13: 0.1259763165 | H13: 113.3786848 | I13: 441 | J13: 9.070294785 | K13: 10 | L13: 13
A14: ='Feed Cost'!A17 -> feed wheat grain | B14: ='Feed Cost'!B17 -> 6.25 | C14: ='Feed Cost'!C17 -> 60 | D14: ='Feed Cost'!D17 -> 11.8 | E14: ='Feed Cost'!F17 -> 88.9 | F14: ='Feed Cost'!G17 -> 15.6 | G14: 0.1328490401 | H14: 75.70692095 | I14: 52.92 | J14: 11.81027967 | K14: 11 | L14: 12
A15: =IF('Feed Cost'!A27="(enter new feed)","",'Feed Cost'!A27) -> wheat straw NH3 | B15: =IF('Feed Cost'!B27=0,"",'Feed Cost'!B27) -> 100 | C15: ='Feed Cost'!C27 -> 2000 | D15: ='Feed Cost'!D27 -> 12 | E15: ='Feed Cost'!F27 -> 41.5 | F15: ='Feed Cost'!G27 -> 8 | G15: =IF(B15="","",(B15)/(I15*(E15/100))) -> 0.1369112815 | H15: 71.02272727 | I15: 1760 | J15: 5.681818182 | K15: 12 | L15: 11
A16: ='Feed Cost'!A8 -> alfalfa hay | B16: ='Feed Cost'!B8 -> 155 | C16: ='Feed Cost'!C8 -> 2000 | D16: ='Feed Cost'!D8 -> 12.1 | E16: ='Feed Cost'!F8 -> 63 | F16: ='Feed Cost'!G8 -> 19.2 | G16: =(B16)/(I16*(E16/100)) -> 0.1399497987 | H16: 45.92102768 | I16: 1758 | J16: 8.816837315 | K16: 13 | L16: 10
A17: ='Feed Cost'!A21 -> corn DDG | B17: ='Feed Cost'!B21 -> 250 | C17: ='Feed Cost'!C21 -> 2205 | D17: ='Feed Cost'!D21 -> 10 | E17: ='Feed Cost'!F21 -> 88 | F17: ='Feed Cost'!G21 -> 28 | G17: 0.1431549051 | H17: 44.99154159 | I17: 1984.5 | J17: 12.59763165 | K17: 14 | L17: 9
A18: ='Feed Cost'!A18 -> oat grain | B18: ='Feed Cost'!B18 -> 4.05 | C18: ='Feed Cost'!C18 -> 34 | D18: ='Feed Cost'!D18 -> 9.8 | E18: ='Feed Cost'!F18 -> 76.2 | F18: ='Feed Cost'!G18 -> 11.3 | G18: 0.1733063985 | H18: 116.8667926 | I18: 30.668 | J18: 13.20594757 | K18: 15 | L18: 8
A19: ='Feed Cost'!A19 -> 12% pellets | B19: ='Feed Cost'!B19 -> 250 | C19: ='Feed Cost'!C19 -> 2205 | D19: ='Feed Cost'!D19 -> 10 | E19: ='Feed Cost'!F19 -> 72 | F19: ='Feed Cost'!G19 -> 12 | G19: 0.1749671062 | H19: 104.9802637 | I19: 1984.5 | J19: 12.59763165 | K19: 16 | L19: 7
A20: ='Feed Cost'!A20 -> feed peas | B20: ='Feed Cost'!B20 -> 9 | C20: ='Feed Cost'!C20 -> 60 | D20: ='Feed Cost'!D20 -> 11.8 | E20: ='Feed Cost'!F20 -> 87.2 | F20: ='Feed Cost'!G20 -> 23.9 | G20: 0.1950321413 | H20: 71.15817038 | I20: 52.92 | J20: 17.00680272 | K20: 17 | L20: 6
A21: ='Feed Cost'!A22 -> 34% canola meal | B21: ='Feed Cost'!B22 -> 320 | C21: ='Feed Cost'!C22 -> 2205 | D21: ='Feed Cost'!D22 -> 8 | E21: ='Feed Cost'!F22 -> 70 | F21: ='Feed Cost'!G22 -> 34 | G21: 0.2253489387 | H21: 46.39536974 | I21: 2028.6 | J21: 15.77442571 | K21: 18 | L21: 5
A22: ='Feed Cost'!A12 -> corn gluten pellets | B22: ='Feed Cost'!B12 -> 350 | C22: ='Feed Cost'!C12 -> 2000 | D22: ='Feed Cost'!D12 -> 10 | E22: ='Feed Cost'!F12 -> 83 | F22: ='Feed Cost'!G12 -> 20 | G22: 0.234270415 | H22: 97.22222222 | I22: 1800 | J22: 19.44444444 | K22: 19 | L22: 4
A23: ='Feed Cost'!A23 -> 47% soybean meal | B23: ='Feed Cost'!B23 -> 415 | C23: ='Feed Cost'!C23 -> 2205 | D23: ='Feed Cost'!D23 -> 10 | E23: ='Feed Cost'!F23 -> 78 | F23: ='Feed Cost'!G23 -> 47 | G23: 0.2681034427 | H23: 44.49376283 | I23: 1984.5 | J23: 20.91206853 | K23: 20 | L23: 3
A24: =IF('Feed Cost'!A26="(enter new feed)","",'Feed Cost'!A26) -> 25.6% molasses | B24: =IF('Feed Cost'!B26=0,"",'Feed Cost'!B26) -> 500 | C24: ='Feed Cost'!C26 -> 2205 | D24: ='Feed Cost'!D26 -> 50 | E24: ='Feed Cost'!F26 -> 65.8 | F24: ='Feed Cost'!G26 -> 51.3 | G24: =IF(B24="","",(B24)/(I24*(E24/100))) -> 0.6892321265 | H24: 88.4044326 | I24: 1102.5 | J24: 45.35147392 | K24: 21 | L24: 2
A25: =IF('Feed Cost'!A25="(enter new feed)","",'Feed Cost'!A25) -> 22% lick tub | B25: =IF('Feed Cost'!B25=0,"",'Feed Cost'!B25) -> 170 | C25: ='Feed Cost'!C25 -> 200 | D25: ='Feed Cost'!D25 -> 5 | E25: ='Feed Cost'!F25 -> 80 | F25: ='Feed Cost'!G25 -> 23.1 | G25: =IF(B25="","",(B25)/(I25*(E25/100))) -> 1.118421053 | H25: 387.3319663 | I25: 190 | J25: 89.47368421 | K25: 22 | L25: 1
A27: Sorted based on lowest cost feed protein (CP)
B28: Price/Unit | C28: Weight | D28: % | E28: % TDN | F28: % CP | G28: TDN Cost | H28: CP Cost | I28: Weight | J28: cents/lb
A29: Commodity | B29: (As Fed) | C29: (As Fed) | D29: Moisture | E29: (DM Basis) | F29: (DM Basis) | G29: cents/lb | H29: $/lb | I29: (Dry Matter) | J29: (Dry Matter)
A30: =IF('Feed Cost'!A28="(enter new feed)","",'Feed Cost'!A28) -> grass hay NH3 | B30: =IF('Feed Cost'!B28=0,"",'Feed Cost'!B28) -> 120 | C30: ='Feed Cost'!C28 -> 2000 | D30: ='Feed Cost'!D28 -> 15 | E30: ='Feed Cost'!F28 -> 62.3 | F30: ='Feed Cost'!G28 -> 18.5 | G30: =(B30*100)/(I30*(E30/100)) -> 11.33037485 | H30: =IF(B30="","",(B30)/(I30*(F30/100))) -> 0.3815580286 | I30: =C30*(100-D30)/100 -> 1700 | J30: =B30*100/I30 -> 7.058823529 | K30: =RANK(H30,$H$30:$H$51,1) -> 1 | L30: =RANK(H30,$H$30:$H$51,0) -> 22
A31: ='Feed Cost'!A23 -> 47% soybean meal | B31: ='Feed Cost'!B23 -> 415 | C31: ='Feed Cost'!C23 -> 2205 | D31: ='Feed Cost'!D23 -> 10 | E31: ='Feed Cost'!F23 -> 78 | F31: ='Feed Cost'!G23 -> 47 | G31: 26.81034427 | H31: =(B31)/(I31*(F31/100)) -> 0.4449376283 | I31: 1984.5 | J31: 20.91206853 | K31: 2 | L31: 21
A32: ='Feed Cost'!A21 -> corn DDG | B32: ='Feed Cost'!B21 -> 250 | C32: ='Feed Cost'!C21 -> 2205 | D32: ='Feed Cost'!D21 -> 10 | E32: ='Feed Cost'!F21 -> 88 | F32: ='Feed Cost'!G21 -> 28 | G32: 14.31549051 | H32: 0.4499154159 | I32: 1984.5 | J32: 12.59763165 | K32: 3 | L32: 20
A33: ='Feed Cost'!A8 -> alfalfa hay | B33: ='Feed Cost'!B8 -> 155 | C33: ='Feed Cost'!C8 -> 2000 | D33: ='Feed Cost'!D8 -> 12.1 | E33: ='Feed Cost'!F8 -> 63 | F33: ='Feed Cost'!G8 -> 19.2 | G33: 13.99497987 | H33: 0.4592102768 | I33: 1758 | J33: 8.816837315 | K33: 4 | L33: 19
A34: ='Feed Cost'!A22 -> 34% canola meal | B34: ='Feed Cost'!B22 -> 320 | C34: ='Feed Cost'!C22 -> 2205 | D34: ='Feed Cost'!D22 -> 8 | E34: ='Feed Cost'!F22 -> 70 | F34: ='Feed Cost'!G22 -> 34 | G34: 22.53489387 | H34: 0.4639536974 | I34: 2028.6 | J34: 15.77442571 | K34: 5 | L34: 18
A35: ='Feed Cost'!A7 -> alfalfa/grass hay | B35: ='Feed Cost'!B7 -> 115 | C35: ='Feed Cost'!C7 -> 2000 | D35: ='Feed Cost'!D7 -> 12.6 | E35: ='Feed Cost'!F7 -> 57.6 | F35: ='Feed Cost'!G7 -> 13.1 | G35: 11.42178363 | H35: 0.5022097228 | I35: 1748 | J35: 6.578947368 | K35: 6 | L35: 17
A36: ='Feed Cost'!A9 -> native grass hay | B36: ='Feed Cost'!B9 -> 90 | C36: ='Feed Cost'!C9 -> 2000 | D36: ='Feed Cost'!D9 -> 11.1 | E36: ='Feed Cost'!F9 -> 55.5 | F36: ='Feed Cost'!G9 -> 9.9 | G36: 9.120481561 | H36: 0.5112997239 | I36: 1778 | J36: 5.061867267 | K36: 7 | L36: 16
A37: ='Feed Cost'!A10 -> oat greenfeed | B37: ='Feed Cost'!B10 -> 115 | C37: ='Feed Cost'!C10 -> 2000 | D37: ='Feed Cost'!D10 -> 15 | E37: ='Feed Cost'!F10 -> 59.6 | F37: ='Feed Cost'!G10 -> 9.9 | G37: 11.35017765 | H37: 0.6833036245 | I37: 1700 | J37: 6.764705882 | K37: 8 | L37: 15
A38: =IF('Feed Cost'!A27="(enter new feed)","",'Feed Cost'!A27) -> wheat straw NH3 | B38: =IF('Feed Cost'!B27=0,"",'Feed Cost'!B27) -> 100 | C38: ='Feed Cost'!C27 -> 2000 | D38: ='Feed Cost'!D27 -> 12 | E38: ='Feed Cost'!F27 -> 41.5 | F38: ='Feed Cost'!G27 -> 8 | G38: 13.69112815 | H38: =IF(B38="","",(B38)/(I38*(F38/100))) -> 0.7102272727 | I38: 1760 | J38: 5.681818182 | K38: 9 | L38: 14
A39: ='Feed Cost'!A20 -> feed peas | B39: ='Feed Cost'!B20 -> 9 | C39: ='Feed Cost'!C20 -> 60 | D39: ='Feed Cost'!D20 -> 11.8 | E39: ='Feed Cost'!F20 -> 87.2 | F39: ='Feed Cost'!G20 -> 23.9 | G39: 19.50321413 | H39: =(B39)/(I39*(F39/100)) -> 0.7115817038 | I39: 52.92 | J39: 17.00680272 | K39: 10 | L39: 13
A40: ='Feed Cost'!A11 -> corn silage | B40: ='Feed Cost'!B11 -> 40 | C40: ='Feed Cost'!C11 -> 2000 | D40: ='Feed Cost'!D11 -> 71.2 | E40: ='Feed Cost'!F11 -> 66.4 | F40: ='Feed Cost'!G11 -> 9.3 | G40: 10.45850067 | H40: =(B40)/(I40*(F40/100)) -> 0.7467144564 | I40: 576 | J40: 6.944444444 | K40: 11 | L40: 12
A41: ='Feed Cost'!A17 -> feed wheat grain | B41: ='Feed Cost'!B17 -> 6.25 | C41: ='Feed Cost'!C17 -> 60 | D41: ='Feed Cost'!D17 -> 11.8 | E41: ='Feed Cost'!F17 -> 88.9 | F41: ='Feed Cost'!G17 -> 15.6 | G41: 13.28490401 | H41: =(B41)/(I41*(F41/100)) -> 0.7570692095 | I41: 52.92 | J41: 11.81027967 | K41: 12 | L41: 11
A42: ='Feed Cost'!A13 -> barley straw | B42: ='Feed Cost'!B13 -> 70 | C42: ='Feed Cost'!C13 -> 2000 | D42: ='Feed Cost'!D13 -> 10.9 | E42: ='Feed Cost'!F13 -> 46 | F42: ='Feed Cost'!G13 -> 5 | G42: 8.539501293 | H42: =(B42)/(I42*(F42/100)) -> 0.785634119 | I42: 1782 | J42: 3.928170595 | K42: 13 | L42: 10
A43: ='Feed Cost'!A15 -> barley grain | B43: ='Feed Cost'!B15 -> 4.25 | C43: ='Feed Cost'!C15 -> 48 | D43: ='Feed Cost'!D15 -> 11.5 | E43: ='Feed Cost'!F15 -> 83.1 | F43: ='Feed Cost'!G15 -> 12.5 | G43: 12.03935993 | H43: =(B43)/(I43*(F43/100)) -> 0.8003766478 | I43: 42.48 | J43: 10.0047081 | K43: 14 | L43: 9
A44: =IF('Feed Cost'!A26="(enter new feed)","",'Feed Cost'!A26) -> 25.6% molasses | B44: =IF('Feed Cost'!B26=0,"",'Feed Cost'!B26) -> 500 | C44: ='Feed Cost'!C26 -> 2205 | D44: ='Feed Cost'!D26 -> 50 | E44: ='Feed Cost'!F26 -> 65.8 | F44: ='Feed Cost'!G26 -> 51.3 | G44: 68.92321265 | H44: =IF(B44="","",(B44)/(I44*(F44/100))) -> 0.884044326 | I44: 1102.5 | J44: 45.35147392 | K44: 15 | L44: 8
A45: ='Feed Cost'!A12 -> corn gluten pellets | B45: ='Feed Cost'!B12 -> 350 | C45: ='Feed Cost'!C12 -> 2000 | D45: ='Feed Cost'!D12 -> 10 | E45: ='Feed Cost'!F12 -> 83 | F45: ='Feed Cost'!G12 -> 20 | G45: 23.4270415 | H45: =(B45)/(I45*(F45/100)) -> 0.9722222222 | I45: 1800 | J45: 19.44444444 | K45: 16 | L45: 7
A46: ='Feed Cost'!A19 -> 12% pellets | B46: ='Feed Cost'!B19 -> 250 | C46: ='Feed Cost'!C19 -> 2205 | D46: ='Feed Cost'!D19 -> 10 | E46: ='Feed Cost'!F19 -> 72 | F46: ='Feed Cost'!G19 -> 12 | G46: 17.49671062 | H46: 1.049802637 | I46: 1984.5 | J46: 12.59763165 | K46: 17 | L46: 6
A47: ='Feed Cost'!A16 -> corn grain | B47: ='Feed Cost'!B16 -> 5.4 | C47: ='Feed Cost'!C16 -> 56 | D47: ='Feed Cost'!D16 -> 11 | E47: ='Feed Cost'!F16 -> 88.2 | F47: ='Feed Cost'!G16 -> 10 | G47: 12.28420742 | H47: 1.083467095 | I47: 49.84 | J47: 10.83467095 | K47: 18 | L47: 5
A48: ='Feed Cost'!A24 -> beet pulp | B48: ='Feed Cost'!B24 -> 40 | C48: ='Feed Cost'!C24 -> 2205 | D48: ='Feed Cost'!D24 -> 80 | E48: ='Feed Cost'!F24 -> 72 | F48: ='Feed Cost'!G24 -> 8 | G48: 12.59763165 | H48: 1.133786848 | I48: 441 | J48: 9.070294785 | K48: 19 | L48: 4
A49: ='Feed Cost'!A18 -> oat grain | B49: ='Feed Cost'!B18 -> 4.05 | C49: ='Feed Cost'!C18 -> 34 | D49: ='Feed Cost'!D18 -> 9.8 | E49: ='Feed Cost'!F18 -> 76.2 | F49: ='Feed Cost'!G18 -> 11.3 | G49: 17.33063985 | H49: 1.168667926 | I49: 30.668 | J49: 13.20594757 | K49: 20 | L49: 3
A50: ='Feed Cost'!A14 -> wheat straw | B50: ='Feed Cost'!B14 -> 70 | C50: ='Feed Cost'!C14 -> 2000 | D50: ='Feed Cost'!D14 -> 10.9 | E50: ='Feed Cost'!F14 -> 44 | F50: ='Feed Cost'!G14 -> 3.1 | G50: 8.927660443 | H50: 1.267151805 | I50: 1782 | J50: 3.928170595 | K50: 21 | L50: 2
A51: =IF('Feed Cost'!A25="(enter new feed)","",'Feed Cost'!A25) -> 22% lick tub | B51: =IF('Feed Cost'!B25=0,"",'Feed Cost'!B25) -> 170 | C51: ='Feed Cost'!C25 -> 200 | D51: ='Feed Cost'!D25 -> 5 | E51: ='Feed Cost'!F25 -> 80 | F51: ='Feed Cost'!G25 -> 23.1 | G51: 111.8421053 | H51: =IF(B51="","",(B51)/(I51*(F51/100))) -> 3.873319663 | I51: 190 | J51: 89.47368421 | K51: 22 | L51: 1
A53: Sorted based on lowest cost dry matter (DM)
B54: Price/Unit | C54: Weight | D54: % | E54: % TDN | F54: % CP | G54: TDN Cost | H54: CP Cost | I54: Weight | J54: $/lb
A55: Commodity | B55: (As Fed) | C55: (As Fed) | D55: Moisture | E55: (DM Basis) | F55: (DM Basis) | G55: cents/lb | H55: cents/lb | I55: (Dry Matter) | J55: (Dry Matter)
A56: ='Feed Cost'!A13 -> barley straw | B56: ='Feed Cost'!B13 -> 70 | C56: ='Feed Cost'!C13 -> 2000 | D56: ='Feed Cost'!D13 -> 10.9 | E56: ='Feed Cost'!F13 -> 46 | F56: ='Feed Cost'!G13 -> 5 | G56: =(B56*100)/(I56*(E56/100)) -> 8.539501293 | H56: =(B56*100)/(I56*(F56/100)) -> 78.5634119 | I56: =C56*(100-D56)/100 -> 1782 | J56: =B56/I56 -> 0.03928170595 | K56: =RANK(J56,$J$56:$J$77,1) -> 1 | L56: =RANK(J56,$J$56:$J$77,0) -> 21
A57: ='Feed Cost'!A14 -> wheat straw | B57: ='Feed Cost'!B14 -> 70 | C57: ='Feed Cost'!C14 -> 2000 | D57: ='Feed Cost'!D14 -> 10.9 | E57: ='Feed Cost'!F14 -> 44 | F57: ='Feed Cost'!G14 -> 3.1 | G57: 8.927660443 | H57: 126.7151805 | I57: 1782 | J57: =B57/I57 -> 0.03928170595 | K57: 1 | L57: 21
A58: ='Feed Cost'!A9 -> native grass hay | B58: ='Feed Cost'!B9 -> 90 | C58: ='Feed Cost'!C9 -> 2000 | D58: ='Feed Cost'!D9 -> 11.1 | E58: ='Feed Cost'!F9 -> 55.5 | F58: ='Feed Cost'!G9 -> 9.9 | G58: 9.120481561 | H58: 51.12997239 | I58: 1778 | J58: =B58/I58 -> 0.05061867267 | K58: 3 | L58: 20
A59: =IF('Feed Cost'!A27="(enter new feed)","",'Feed Cost'!A27) -> wheat straw NH3 | B59: =IF('Feed Cost'!B27=0,"",'Feed Cost'!B27) -> 100 | C59: ='Feed Cost'!C27 -> 2000 | D59: ='Feed Cost'!D27 -> 12 | E59: ='Feed Cost'!F27 -> 41.5 | F59: ='Feed Cost'!G27 -> 8 | G59: 13.69112815 | H59: 71.02272727 | I59: 1760 | J59: =IF(B59="","",B59/I59) -> 0.05681818182 | K59: 4 | L59: 19
A60: ='Feed Cost'!A7 -> alfalfa/grass hay | B60: ='Feed Cost'!B7 -> 115 | C60: ='Feed Cost'!C7 -> 2000 | D60: ='Feed Cost'!D7 -> 12.6 | E60: ='Feed Cost'!F7 -> 57.6 | F60: ='Feed Cost'!G7 -> 13.1 | G60: 11.42178363 | H60: 50.22097228 | I60: 1748 | J60: =B60/I60 -> 0.06578947368 | K60: 5 | L60: 18
A61: ='Feed Cost'!A10 -> oat greenfeed | B61: ='Feed Cost'!B10 -> 115 | C61: ='Feed Cost'!C10 -> 2000 | D61: ='Feed Cost'!D10 -> 15 | E61: ='Feed Cost'!F10 -> 59.6 | F61: ='Feed Cost'!G10 -> 9.9 | G61: 11.35017765 | H61: 68.33036245 | I61: 1700 | J61: =B61/I61 -> 0.06764705882 | K61: 6 | L61: 17
A62: ='Feed Cost'!A11 -> corn silage | B62: ='Feed Cost'!B11 -> 40 | C62: ='Feed Cost'!C11 -> 2000 | D62: ='Feed Cost'!D11 -> 71.2 | E62: ='Feed Cost'!F11 -> 66.4 | F62: ='Feed Cost'!G11 -> 9.3 | G62: 10.45850067 | H62: 74.67144564 | I62: 576 | J62: =B62/I62 -> 0.06944444444 | K62: 7 | L62: 16
A63: =IF('Feed Cost'!A28="(enter new feed)","",'Feed Cost'!A28) -> grass hay NH3 | B63: =IF('Feed Cost'!B28=0,"",'Feed Cost'!B28) -> 120 | C63: ='Feed Cost'!C28 -> 2000 | D63: ='Feed Cost'!D28 -> 15 | E63: ='Feed Cost'!F28 -> 62.3 | F63: ='Feed Cost'!G28 -> 18.5 | G63: 11.33037485 | H63: 38.15580286 | I63: 1700 | J63: =IF(B63="","",B63/I63) -> 0.07058823529 | K63: 8 | L63: 15
A64: ='Feed Cost'!A8 -> alfalfa hay | B64: ='Feed Cost'!B8 -> 155 | C64: ='Feed Cost'!C8 -> 2000 | D64: ='Feed Cost'!D8 -> 12.1 | E64: ='Feed Cost'!F8 -> 63 | F64: ='Feed Cost'!G8 -> 19.2 | G64: 13.99497987 | H64: 45.92102768 | I64: 1758 | J64: =B64/I64 -> 0.08816837315 | K64: 9 | L64: 14
A65: ='Feed Cost'!A24 -> beet pulp | B65: ='Feed Cost'!B24 -> 40 | C65: ='Feed Cost'!C24 -> 2205 | D65: ='Feed Cost'!D24 -> 80 | E65: ='Feed Cost'!F24 -> 72 | F65: ='Feed Cost'!G24 -> 8 | G65: 12.59763165 | H65: 113.3786848 | I65: 441 | J65: 0.09070294785 | K65: 10 | L65: 13
A66: ='Feed Cost'!A15 -> barley grain | B66: ='Feed Cost'!B15 -> 4.25 | C66: ='Feed Cost'!C15 -> 48 | D66: ='Feed Cost'!D15 -> 11.5 | E66: ='Feed Cost'!F15 -> 83.1 | F66: ='Feed Cost'!G15 -> 12.5 | G66: 12.03935993 | H66: 80.03766478 | I66: 42.48 | J66: 0.100047081 | K66: 11 | L66: 12
A67: ='Feed Cost'!A16 -> corn grain | B67: ='Feed Cost'!B16 -> 5.4 | C67: ='Feed Cost'!C16 -> 56 | D67: ='Feed Cost'!D16 -> 11 | E67: ='Feed Cost'!F16 -> 88.2 | F67: ='Feed Cost'!G16 -> 10 | G67: 12.28420742 | H67: 108.3467095 | I67: 49.84 | J67: 0.1083467095 | K67: 12 | L67: 11
A68: ='Feed Cost'!A17 -> feed wheat grain | B68: ='Feed Cost'!B17 -> 6.25 | C68: ='Feed Cost'!C17 -> 60 | D68: ='Feed Cost'!D17 -> 11.8 | E68: ='Feed Cost'!F17 -> 88.9 | F68: ='Feed Cost'!G17 -> 15.6 | G68: 13.28490401 | H68: 75.70692095 | I68: 52.92 | J68: 0.1181027967 | K68: 13 | L68: 10
A69: ='Feed Cost'!A19 -> 12% pellets | B69: ='Feed Cost'!B19 -> 250 | C69: ='Feed Cost'!C19 -> 2205 | D69: ='Feed Cost'!D19 -> 10 | E69: ='Feed Cost'!F19 -> 72 | F69: ='Feed Cost'!G19 -> 12 | G69: 17.49671062 | H69: 104.9802637 | I69: 1984.5 | J69: 0.1259763165 | K69: 14 | L69: 8
A70: ='Feed Cost'!A21 -> corn DDG | B70: ='Feed Cost'!B21 -> 250 | C70: ='Feed Cost'!C21 -> 2205 | D70: ='Feed Cost'!D21 -> 10 | E70: ='Feed Cost'!F21 -> 88 | F70: ='Feed Cost'!G21 -> 28 | G70: 14.31549051 | H70: 44.99154159 | I70: 1984.5 | J70: 0.1259763165 | K70: 14 | L70: 8
A71: ='Feed Cost'!A18 -> oat grain | B71: ='Feed Cost'!B18 -> 4.05 | C71: ='Feed Cost'!C18 -> 34 | D71: ='Feed Cost'!D18 -> 9.8 | E71: ='Feed Cost'!F18 -> 76.2 | F71: ='Feed Cost'!G18 -> 11.3 | G71: 17.33063985 | H71: 116.8667926 | I71: 30.668 | J71: 0.1320594757 | K71: 16 | L71: 7
A72: ='Feed Cost'!A22 -> 34% canola meal | B72: ='Feed Cost'!B22 -> 320 | C72: ='Feed Cost'!C22 -> 2205 | D72: ='Feed Cost'!D22 -> 8 | E72: ='Feed Cost'!F22 -> 70 | F72: ='Feed Cost'!G22 -> 34 | G72: 22.53489387 | H72: 46.39536974 | I72: 2028.6 | J72: 0.1577442571 | K72: 17 | L72: 6
A73: ='Feed Cost'!A20 -> feed peas | B73: ='Feed Cost'!B20 -> 9 | C73: ='Feed Cost'!C20 -> 60 | D73: ='Feed Cost'!D20 -> 11.8 | E73: ='Feed Cost'!F20 -> 87.2 | F73: ='Feed Cost'!G20 -> 23.9 | G73: 19.50321413 | H73: 71.15817038 | I73: 52.92 | J73: 0.1700680272 | K73: 18 | L73: 5
A74: ='Feed Cost'!A12 -> corn gluten pellets | B74: ='Feed Cost'!B12 -> 350 | C74: ='Feed Cost'!C12 -> 2000 | D74: ='Feed Cost'!D12 -> 10 | E74: ='Feed Cost'!F12 -> 83 | F74: ='Feed Cost'!G12 -> 20 | G74: 23.4270415 | H74: 97.22222222 | I74: 1800 | J74: 0.1944444444 | K74: 19 | L74: 4
A75: ='Feed Cost'!A23 -> 47% soybean meal | B75: ='Feed Cost'!B23 -> 415 | C75: ='Feed Cost'!C23 -> 2205 | D75: ='Feed Cost'!D23 -> 10 | E75: ='Feed Cost'!F23 -> 78 | F75: ='Feed Cost'!G23 -> 47 | G75: 26.81034427 | H75: 44.49376283 | I75: 1984.5 | J75: 0.2091206853 | K75: 20 | L75: 3
A76: =IF('Feed Cost'!A26="(enter new feed)","",'Feed Cost'!A26) -> 25.6% molasses | B76: =IF('Feed Cost'!B26=0,"",'Feed Cost'!B26) -> 500 | C76: ='Feed Cost'!C26 -> 2205 | D76: ='Feed Cost'!D26 -> 50 | E76: ='Feed Cost'!F26 -> 65.8 | F76: ='Feed Cost'!G26 -> 51.3 | G76: 68.92321265 | H76: 88.4044326 | I76: 1102.5 | J76: =IF(B76="","",B76/I76) -> 0.4535147392 | K76: 21 | L76: 2
A77: =IF('Feed Cost'!A25="(enter new feed)","",'Feed Cost'!A25) -> 22% lick tub | B77: =IF('Feed Cost'!B25=0,"",'Feed Cost'!B25) -> 170 | C77: ='Feed Cost'!C25 -> 200 | D77: ='Feed Cost'!D25 -> 5 | E77: ='Feed Cost'!F25 -> 80 | F77: ='Feed Cost'!G25 -> 23.1 | G77: 111.8421053 | H77: 387.3319663 | I77: 190 | J77: =IF(B77="","",B77/I77) -> 0.8947368421 | K77: 22 | L77: 1
